[Event "WYCC 2018 G14"]
[Site "Halkidiki"]
[Date "2018.10.21"]
[Round "3"]
[White "Ziegenfuss, Antonia"]
[Black "Wen, Yili"]
[Result "1-0"]
[ECO "E20"]
[WhiteElo "1969"]
[BlackElo "2083"]
[Annotator "NA"]
[PlyCount "117"]
[EventDate "2018.10.20"]
[EventType "swiss"]
[EventCountry "GRE"]
[SourceTitle "playchess.com"]
[Source "ChessBase"]
[SourceQuality "1"]
[TimeControl "40/5400+30:1800+30"]

1. d4 {[%emt 0:00:00]} Nf6 {[%emt 0:00:00]} 2. c4 {[%emt 0:00:00]} e6 {[%emt 0:00:00]} 3. Nc3 {[%emt 0:00:00]} Bb4 {[%emt 0:00:00]} 4. f3 {[%emt 0:00:00]} c5 {[%emt 0:00:10]} 5. d5 {[%emt 0:00:01]} d6 {[%emt 0:00:06]} 6. e4 {[%emt 0:00:44]} b5 {[%emt 0:00:06] E20: Nimzo-Indian: 4 g3 and 4 f3} 7. Bd3 {[%emt 0:13:44]} O-O {[%emt 0:00:15]} 8. Nge2 {[%emt 0:00:50]} bxc4 {[%emt 0:00:47]} 9. Bxc4 {[%emt 0:00:16]} exd5 {[%emt 0:06:21]} 10. Bxd5 {[%emt 0:00:17]} Nxd5 {[%emt 0:00:08]} 11. Qxd5 {[%emt 0:00:19]} Be6 $146 {[%emt 0:00:08]} ({Predecessor:} 11... Qb6 12. Bf4 Be6 13. Qxa8 Nc6 14. Qxf8+ Kxf8 15. Bxd6+ {1-0 (75) Mamedyarov,S (2766)-So,W (2808) chess.com INT 2017}) 12. Qd3 {[%emt 0:15:21]} Qb6 {[%emt 0:08:29]} 13. Be3 {[%emt 0:04:19]} Nd7 {[%emt 0:01:07]} 14. a3 {[%emt 0:09:40]} Bxc3+ {[%emt 0:01:32]} 15. Qxc3 {[%emt 0:01:30]} Rab8 {[%emt 0:00:45]} 16. b4 {[%emt 0:02:41]} Qa6 {[%emt 0:00:42]} 17. Kf2 {[%emt 0:04:49]} Rfc8 {[%emt 0:05:41]} 18. Qd2 {[%emt 0:05:42]} Ne5 {[%emt 0:03:17]} 19. f4 {[%emt 0:05:54]} Nd3+ {[%emt 0:04:38]} 20. Kg3 {[%emt 0:04:39]} f5 {[%emt 0:09:02]} 21. exf5 {[%emt 0:07:17]} Bxf5 {[%emt 0:00:27]} 22. h3 {[%emt 0:01:18]} d5 {[%emt 0:08:16]} 23. Bxc5 {[%emt 0:08:12]} Qg6+ {[%emt 0:00:09]} 24. Kh2 {[%emt 0:01:45]} Be4 {[%emt 0:00:14]} 25. Ng3 {[%emt 0:01:47]} Rxc5 {[%emt 0:09:20]} 26. f5 {[%emt 0:03:15]} Qe8 {[%emt 0:01:29]} 27. Nxe4 {[%emt 0:02:28]} Qe5+ {[%emt 0:19:07]} 28. Ng3 {[%emt 0:00:45]} Rc3 {[%emt 0:00:29]} 29. Rhd1 {[%emt 0:01:13]} Rbc8 {[%emt 0:01:38]} 30. Qe2 {[%emt 0:01:33]} Qf6 {[%emt 0:05:28]} 31. Qe6+ {[%emt 0:01:16]} Qxe6 {[%emt 0:00:08]} 32. fxe6 {[%emt 0:00:03]} Nf4 {[%emt 0:00:15]} 33. Nf5 {[%emt 0:01:36]} Re8 {[%emt 0:02:53]} 34. Rd4 {[%emt 0:02:08]} Nxe6 {[%emt 0:10:02]} 35. Rxd5 {[%emt 0:00:14]} g6 {[%emt 0:00:50]} 36. Nh6+ {[%emt 0:00:58]} Kg7 {[%emt 0:01:09]} 37. Ng4 {[%emt 0:00:09]} Re7 {[%emt 0:02:49]} 38. Re5 {[%emt 0:01:05]} h5 {[%emt 0:00:18]} 39. Ne3 {[%emt 0:00:29]} Rd3 {[%emt 0:00:19]} 40. Nd5 {[%emt 0:00:00]} Rd7 {[%emt 0:00:00]} 41. Rxe6 {[%emt 0:04:25]} R3xd5 {[%emt 0:00:37]} 42. Rc1 {[%emt 0:01:12]} Rg5 {[%emt 0:04:08]} 43. Rce1 {[%emt 0:06:54]} Kh6 {[%emt 0:03:33]} 44. R1e5 {[%emt 0:04:02]} Rd5 {[%emt 0:03:23]} 45. Rxd5 {[%emt 0:01:37]} Rxd5 {[%emt 0:00:02]} 46. Ra6 {[%emt 0:00:12]} Rd7 {[%emt 0:00:05]} 47. Kg3 {[%emt 0:01:08]} Kg5 {[%emt 0:00:40]} 48. Ra5+ {[%emt 0:00:55]} Kf6 {[%emt 0:00:26]} 49. Kf4 {[%emt 0:00:27]} Re7 {[%emt 0:01:42]} 50. a4 {[%emt 0:01:46]} Rb7 {[%emt 0:01:53]} 51. Ra6+ {[%emt 0:01:23]} Kg7 {[%emt 0:09:55]} 52. b5 {[%emt 0:01:10]} Rf7+ {[%emt 0:00:31]} 53. Ke5 {[%emt 0:01:45]} Kh6 {[%emt 0:00:44]} 54. Kd6 {[%emt 0:05:16]} h4 {[%emt 0:00:53]} 55. a5 {[%emt 0:00:48]} Kh5 {[%emt 0:03:13]} 56. b6 {[%emt 0:00:26]} axb6 {[%emt 0:00:04]} 57. axb6 {[%emt 0:00:06]} Rf2 {[%emt 0:00:04]} 58. b7 {[%emt 0:01:14]} Rf6+ {[%emt 0:02:39]} 59. Ke7 {[%emt 0:00:58]} 1-0

[Event "WYCC 2018 G14"]
[Site "Halkidiki"]
[Date "2018.10.21"]
[Round "3"]
[White "Zhu, Evelyn"]
[Black "Kurmangaliyeva, Liya"]
[Result "1/2-1/2"]
[ECO "D45"]
[WhiteElo "1926"]
[BlackElo "1733"]
[Annotator "NA"]
[PlyCount "90"]
[EventDate "2018.10.20"]
[EventType "swiss"]
[EventCountry "GRE"]
[SourceTitle "playchess.com"]
[Source "ChessBase"]
[SourceQuality "1"]
[TimeControl "40/5400+30:1800+30"]

1. d4 {[%emt 0:00:00]} d5 {[%emt 0:00:00]} 2. c4 {[%emt 0:00:00]} c6 {[%emt 0:00:00]} 3. Nc3 {[%emt 0:00:00]} Nf6 {[%emt 0:00:00]} 4. e3 {[%emt 0:00:00]} a6 {[%emt 0:02:00]} 5. Nf3 {[%emt 0:00:31]} e6 {[%emt 0:00:07]} 6. Qc2 {[%emt 0:07:24]} c5 {[%emt 0:01:52]} 7. cxd5 {[%emt 0:07:01]} exd5 {[%emt 0:06:40]} 8. dxc5 {[%emt 0:02:17]} Bxc5 {[%emt 0:02:48]} 9. a3 {[%emt 0:05:55]} Nc6 {[%emt 0:05:04]} 10. b4 {[%emt 0:04:46]} Bd6 {[%emt 0:03:30]} 11. Be2 {[%emt 0:06:44]} O-O {[%emt 0:04:15]} 12. Bb2 {[%emt 0:01:20]} Be6 {[%emt 0:05:12]} 13. O-O {[%emt 0:04:39]} Rc8 {[%emt 0:03:33]} 14. Rfd1 {[%emt 0:05:19]} Qe7 {[%emt 0:04:43]} 15. e4 {[%emt 0:16:37]} d4 {[%emt 0:07:12]} 16. Nxd4 {[%emt 0:05:19]} Nxd4 {[%emt 0:00:23]} 17. Rxd4 {[%emt 0:00:11]} Be5 {[%emt 0:00:09]} 18. Rdd1 {[%emt 0:01:22]} Bxc3 {[%emt 0:01:07]} 19. Bxc3 {[%emt 0:00:38]} Nxe4 {[%emt 0:01:19]} 20. Qxe4 {[%emt 0:00:18]} Rxc3 {[%emt 0:00:18]} 21. Rdc1 {[%emt 0:09:26]} Rxc1+ {[%emt 0:03:15]} 22. Rxc1 {[%emt 0:00:06]} Qg5 {[%emt 0:03:06]} 23. Rc5 {[%emt 0:05:20]} Qd2 {[%emt 0:02:00]} 24. Bf1 {[%emt 0:01:58]} b5 {[%emt 0:10:01]} 25. h4 {[%emt 0:04:56]} Qd1 {[%emt 0:03:28]} 26. Qe2 {[%emt 0:03:52]} Qa1 {[%emt 0:02:06]} 27. Qe5 {[%emt 0:06:08]} Qb1 {[%emt 0:01:38]} 28. Qc3 {[%emt 0:00:10]} Bc4 {[%emt 0:05:14]} 29. Rxc4 {[%emt 0:00:02]} bxc4 {[%emt 0:00:05]} 30. Qxc4 {[%emt 0:00:06]} a5 {[%emt 0:00:35]} 31. bxa5 {[%emt 0:00:01]} Qb7 {[%emt 0:01:52]} 32. Qd4 {[%emt 0:02:15]} Ra8 {[%emt 0:02:13]} 33. a6 {[%emt 0:00:15]} Qa7 {[%emt 0:00:16]} 34. Qe4 {[%emt 0:00:51]} Rb8 {[%emt 0:03:45]} 35. Bd3 {[%emt 0:00:26]} g6 {[%emt 0:00:41]} 36. h5 {[%emt 0:00:10]} Qc5 {[%emt 0:01:55]} 37. Qf4 {[%emt 0:01:15]} Rd8 {[%emt 0:01:59]} 38. hxg6 {[%emt 0:00:36]} hxg6 {[%emt 0:01:28]} 39. Qc4 {[%emt 0:00:28]} Qxa3 {[%emt 0:05:38]} 40. Bf1 {[%emt 0:00:00]} Qe7 {[%emt 0:00:00]} 41. Qb5 {[%emt 0:04:43]} Qa7 {[%emt 0:05:19]} 42. Qg5 {[%emt 0:02:34]} Rd1 {[%emt 0:06:39]} 43. Qg4 {[%emt 0:00:21]} Qd7 {[%emt 0:07:20]} 44. Qe2 {[%emt 0:03:56]} Rd2 {[%emt 0:03:24]} 45. Qe3 {[%emt 0:01:32]} Rc2 {[%emt 0:06:20]} 1/2-1/2

[Event "WYCC 2018 G14"]
[Site "Halkidiki"]
[Date "2018.10.21"]
[Round "3"]
[White "Rodriguez Redondo, Adhara"]
[Black "Saraci, Rinesa"]
[Result "1/2-1/2"]
[ECO "C54"]
[WhiteElo "1911"]
[BlackElo "1138"]
[Annotator "NA"]
[PlyCount "76"]
[EventDate "2018.10.20"]
[EventType "swiss"]
[EventCountry "GRE"]
[SourceTitle "playchess.com"]
[Source "ChessBase"]
[SourceQuality "1"]
[TimeControl "40/5400+30:1800+30"]

1. e4 {[%emt 0:00:00]} e5 {[%emt 0:00:00]} 2. Nf3 {[%emt 0:00:00]} Nc6 {[%emt 0:00:00]} 3. Bc4 {[%emt 0:00:00]} Bc5 {[%emt 0:00:16]} 4. c3 {[%emt 0:00:04]} Nf6 {[%emt 0:00:14]} 5. d3 {[%emt 0:00:05]} h6 {[%emt 0:00:17]} 6. O-O {[%emt 0:00:51]} O-O {[%emt 0:00:12]} 7. h3 {[%emt 0:00:04]} d6 {[%emt 0:00:25]} 8. Bb3 Bb6 9. Re1 {[%emt 0:00:56]} Qe7 {[%emt 0:00:42]} 10. Nbd2 {[%emt 0:00:43]} Be6 {[%emt 0:00:22]} 11. Bc2 {[%emt 0:00:29]} Rfe8 {[%emt 0:00:22]} 12. Nf1 {[%emt 0:00:43]} Rad8 {[%emt 0:00:41]} 13. Ng3 {[%emt 0:02:45]} d5 {[%emt 0:01:12]} 14. exd5 {[%emt 0:04:08]} Nxd5 {[%emt 0:05:21]} 15. Nxe5 {[%emt 0:11:54]} Nxe5 {[%emt 0:02:02]} 16. Rxe5 {[%emt 0:02:54]} Bxf2+ {[%emt 0:03:40]} 17. Kxf2 {[%emt 0:08:00]} Qf6+ {[%emt 0:00:41]} 18. Qf3 {[%emt 0:13:37]} Qxe5 {[%emt 0:01:03]} 19. d4 {[%emt 0:03:34]} Qf6 {[%emt 0:00:48]} 20. Ne4 {[%emt 0:00:30]} Qxf3+ {[%emt 0:00:42]} 21. Kxf3 {[%emt 0:00:08]} Bf5 22. Bd2 Re7 {[%emt 0:02:03]} 23. Nf6+ {[%emt 0:10:36]} Nxf6 {[%emt 0:00:11]} 24. Bxf5 {[%emt 0:00:06]} Rde8 {[%emt 0:02:51]} 25. Bd3 {[%emt 0:01:59]} Nd5 {[%emt 0:06:02]} 26. Rd1 {[%emt 0:03:20]} c6 {[%emt 0:07:01]} 27. g4 {[%emt 0:02:44]} Re6 {[%emt 0:02:58]} 28. h4 {[%emt 0:02:41]} Ne3 {[%emt 0:07:26]} 29. Rg1 {[%emt 0:06:23]} Nd5 {[%emt 0:01:00]} 30. Rd1 {[%emt 0:00:23]} b5 {[%emt 0:06:18]} 31. b3 {[%emt 0:05:57]} a6 {[%emt 0:07:31]} 32. a3 {[%emt 0:02:32]} Kf8 {[%emt 0:07:27]} 33. Kg3 {[%emt 0:06:44]} Ne3 {[%emt 0:02:00]} 34. Rc1 {[%emt 0:03:14]} Nd5 {[%emt 0:01:25]} 35. Rd1 {[%emt 0:00:26]} Ne3 {[%emt 0:00:19]} 36. Rc1 {[%emt 0:00:14]} Nd5 {[%emt 0:00:30]} 37. Rd1 {[%emt 0:00:06]} Ne3 {[%emt 0:00:40]} 38. Rc1 {[%emt 0:00:05]} Nd5 {[%emt 0:00:27]} 1/2-1/2

[Event "WYCC 2018 G14"]
[Site "Halkidiki"]
[Date "2018.10.21"]
[Round "3"]
[White "Ehsani, Yassamin"]
[Black "Yedigaryan, Asya"]
[Result "1-0"]
[ECO "E70"]
[WhiteElo "1875"]
[BlackElo "1726"]
[Annotator "NA"]
[PlyCount "111"]
[EventDate "2018.10.20"]
[EventType "swiss"]
[EventCountry "GRE"]
[SourceTitle "playchess.com"]
[Source "ChessBase"]
[SourceQuality "1"]
[TimeControl "40/5400+30:1800+30"]

1. d4 {[%emt 0:00:00]} Nf6 {[%emt 0:00:00]} 2. c4 {[%emt 0:00:00]} g6 {[%emt 0:00:00]} 3. Nc3 {[%emt 0:00:00]} Bg7 {[%emt 0:00:00]} 4. e4 {[%emt 0:00:00]} d6 {[%emt 0:00:00]} 5. Nge2 {[%emt 0:00:10]} O-O {[%emt 0:00:07]} 6. f3 {[%emt 0:00:35]} e5 {[%emt 0:01:11]} 7. dxe5 dxe5 {[%emt 0:00:06]} 8. Qxd8 {[%emt 0:01:41]} Rxd8 {[%emt 0:00:04]} 9. Nd5 {[%emt 0:00:21]} Nxd5 {[%emt 0:00:24]} 10. cxd5 {[%emt 0:09:15]} Nd7 {[%emt 0:15:19]} 11. Be3 Bf8 {[%emt 0:00:50]} 12. Nc3 {[%emt 0:17:11]} a6 13. Kf2 {[%emt 0:01:19]} Bd6 {[%emt 0:13:39]} 14. Be2 {[%emt 0:04:17]} f6 {[%emt 0:08:20]} 15. Rab1 {[%emt 0:06:23]} b6 {[%emt 0:06:59]} 16. Rhc1 {[%emt 0:06:03]} Nf8 {[%emt 0:05:59]} 17. a3 {[%emt 0:02:38]} Bd7 {[%emt 0:00:58]} 18. Na2 {[%emt 0:04:36]} Rdb8 {[%emt 0:15:58]} 19. Nb4 {[%emt 0:02:22]} a5 {[%emt 0:00:20]} 20. Nc6 {[%emt 0:01:38]} Rc8 {[%emt 0:02:27]} 21. Bb5 {[%emt 0:04:10]} Kg7 {[%emt 0:00:47]} 22. h4 h6 {[%emt 0:08:15]} 23. Rh1 {[%emt 0:08:37]} f5 {[%emt 0:05:58]} 24. Ke2 {[%emt 0:12:47]} f4 {[%emt 0:04:05]} 25. Bf2 {[%emt 0:01:43]} Be8 {[%emt 0:04:00]} 26. g3 {[%emt 0:03:53]} g5 {[%emt 0:00:10]} 27. Rbg1 {[%emt 0:03:19]} Ng6 {[%emt 0:04:13]} 28. a4 {[%emt 0:03:03]} fxg3 {[%emt 0:02:44]} 29. Bxg3 {[%emt 0:00:54]} Kf6 {[%emt 0:00:04]} 30. hxg5+ hxg5 31. Kd3 {[%emt 0:03:57]} Bxc6 {[%emt 0:01:02]} 32. Bxc6 {[%emt 0:00:16]} Rab8 {[%emt 0:00:02]} 33. Bd7 {[%emt 0:01:54]} Rh8 {[%emt 0:00:06]} 34. Kc4 {[%emt 0:00:46]} Rxh1 {[%emt 0:01:07]} 35. Rxh1 {[%emt 0:00:06]} Rh8 {[%emt 0:00:03]} 36. Rxh8 {[%emt 0:00:33]} Nxh8 {[%emt 0:00:03]} 37. Bf2 {[%emt 0:00:20]} Ng6 {[%emt 0:00:15]} 38. Kb5 {[%emt 0:00:48]} Ne7 {[%emt 0:01:39]} 39. Be6 {[%emt 0:01:21]} Kg7 {[%emt 0:01:23]} 40. Kc4 {[%emt 0:00:00]} Kf6 {[%emt 0:00:00]} 41. Kb5 {[%emt 0:02:36]} Kg7 {[%emt 0:00:27]} 42. Be1 {[%emt 0:00:34]} Kf6 {[%emt 0:05:30]} 43. Bd2 {[%emt 0:00:50]} Bc5 {[%emt 0:00:57]} 44. Bxa5 {[%emt 0:03:29]} Ng6 {[%emt 0:02:46]} 45. Bc3 {[%emt 0:01:49]} Bd6 {[%emt 0:00:27]} 46. Bd2 {[%emt 0:01:12]} Nf4 {[%emt 0:00:34]} 47. Bg4 {[%emt 0:03:43]} Ne2 {[%emt 0:01:45]} 48. Be3 {[%emt 0:01:30]} Nd4+ {[%emt 0:00:50]} 49. Kc4 {[%emt 0:01:24]} Nc2 {[%emt 0:00:28]} 50. Bf2 {[%emt 0:00:49]} Nb4 {[%emt 0:00:29]} 51. Bh3 {[%emt 0:00:54]} Na6 {[%emt 0:00:39]} 52. Kb5 {[%emt 0:02:26]} Nb8 {[%emt 0:00:15]} 53. b4 {[%emt 0:00:47]} Ke7 {[%emt 0:00:30]} 54. a5 {[%emt 0:01:12]} bxa5 {[%emt 0:00:07]} 55. bxa5 {[%emt 0:00:34]} Nd7 {[%emt 0:00:09]} 56. a6 {[%emt 0:01:18]} 1-0

[Event "WYCC 2018 G14"]
[Site "Halkidiki"]
[Date "2018.10.21"]
[Round "3"]
[White "Behzad Nazif, Parva"]
[Black "Villanyi, Alexia"]
[Result "1-0"]
[ECO "E73"]
[WhiteElo "1859"]
[BlackElo "1709"]
[Annotator "NA"]
[PlyCount "83"]
[EventDate "2018.10.20"]
[EventType "swiss"]
[EventCountry "GRE"]
[SourceTitle "playchess.com"]
[Source "ChessBase"]
[SourceQuality "1"]
[TimeControl "40/5400+30:1800+30"]

1. d4 {[%emt 0:00:29]} Nf6 {[%emt 0:00:00]} 2. c4 {[%emt 0:01:06]} g6 {[%emt 0:00:00]} 3. Nc3 {[%emt 0:00:08]} Bg7 {[%emt 0:00:00]} 4. e4 {[%emt 0:00:07]} d6 {[%emt 0:00:04]} 5. Be2 {[%emt 0:00:16]} O-O {[%emt 0:00:32]} 6. Be3 {[%emt 0:00:07]} e5 {[%emt 0:01:41]} 7. d5 {[%emt 0:00:06]} Nbd7 {[%emt 0:01:48]} 8. g4 {[%emt 0:00:39]} Nc5 {[%emt 0:15:19]} 9. Bf3 {[%emt 0:00:50]} Nfd7 {[%emt 0:18:53]} 10. h4 {[%emt 0:09:08]} f6 {[%emt 0:06:57]} 11. h5 {[%emt 0:01:41]} Qe7 {[%emt 0:06:28]} 12. Qd2 {[%emt 0:03:33]} g5 {[%emt 0:01:36]} 13. Nge2 {[%emt 0:04:35]} a5 {[%emt 0:06:01]} 14. Ng3 {[%emt 0:03:01]} Nb6 {[%emt 0:00:39]} 15. Be2 {[%emt 0:02:40]} h6 {[%emt 0:02:58]} 16. b3 {[%emt 0:07:18]} Bd7 {[%emt 0:01:35]} 17. O-O {[%emt 0:02:30]} Rfd8 {[%emt 0:07:03]} 18. Qc2 {[%emt 0:03:47]} Qe8 {[%emt 0:05:14]} 19. a3 {[%emt 0:01:36]} Bf8 {[%emt 0:05:18]} 20. b4 {[%emt 0:02:10]} Nca4 {[%emt 0:00:58]} 21. Nxa4 {[%emt 0:01:00]} Nxa4 {[%emt 0:01:55]} 22. c5 {[%emt 0:00:45]} Bb5 {[%emt 0:02:43]} 23. Bxb5 {[%emt 0:03:20]} Qxb5 {[%emt 0:00:04]} 24. Rfb1 {[%emt 0:02:24]} Qe8 {[%emt 0:04:39]} 25. c6 {[%emt 0:01:46]} b5 {[%emt 0:01:06]} 26. bxa5 {[%emt 0:01:07]} Rxa5 {[%emt 0:00:34]} 27. Bd2 {[%emt 0:00:10]} Raa8 {[%emt 0:01:08]} 28. Rxb5 {[%emt 0:00:45]} Rdb8 {[%emt 0:01:06]} 29. Rab1 {[%emt 0:03:37]} Rxb5 {[%emt 0:02:18]} 30. Rxb5 {[%emt 0:00:06]} Nc5 {[%emt 0:00:31]} 31. Bb4 {[%emt 0:03:42]} Na6 {[%emt 0:00:33]} 32. Qd3 {[%emt 0:07:05]} Qc8 {[%emt 0:00:29]} 33. Nf5 {[%emt 0:00:50]} Kf7 {[%emt 0:02:03]} 34. Rb7 {[%emt 0:02:45]} Ke8 {[%emt 0:01:44]} 35. Qb5 {[%emt 0:06:47]} Qd8 {[%emt 0:01:06]} 36. a4 {[%emt 0:02:22]} Qc8 {[%emt 0:00:17]} 37. Ba5 {[%emt 0:00:54]} Qd8 {[%emt 0:00:41]} 38. Bb6 {[%emt 0:01:45]} Qc8 {[%emt 0:01:04]} 39. Ba7 {[%emt 0:00:25]} Nc5 {[%emt 0:01:07]} 40. Bxc5 {[%emt 0:00:00]} dxc5 {[%emt 0:00:00]} 41. Qc4 {[%emt 0:02:22]} Rb8 {[%emt 0:01:05]} 42. d6 {[%emt 0:01:27]} 1-0

[Event "WYCC 2018 G14"]
[Site "Halkidiki"]
[Date "2018.10.21"]
[Round "3"]
[White "Moracchini, Margaux"]
[Black "Allahverdiyeva, Ayan"]
[Result "1-0"]
[ECO "B22"]
[WhiteElo "1838"]
[BlackElo "2116"]
[Annotator "NA"]
[PlyCount "39"]
[EventDate "2018.10.20"]
[EventType "swiss"]
[EventCountry "GRE"]
[SourceTitle "playchess.com"]
[Source "ChessBase"]
[SourceQuality "1"]
[TimeControl "40/5400+30:1800+30"]

1. e4 {[%emt 0:00:00]} c5 {[%emt 0:00:00]} 2. c3 {[%emt 0:00:00]} Nf6 {[%emt 0:00:00]} 3. e5 {[%emt 0:00:00]} Nd5 {[%emt 0:00:00]} 4. Bc4 {[%emt 0:00:00]} e6 {[%emt 0:00:00]} 5. Nf3 {[%emt 0:00:05]} d6 {[%emt 0:00:46]} 6. d4 {[%emt 0:00:56]} cxd4 {[%emt 0:00:06]} 7. cxd4 {[%emt 0:00:21]} Nc6 {[%emt 0:00:04]} 8. O-O {[%emt 0:02:22]} Be7 {[%emt 0:00:11]} 9. Nc3 {[%emt 0:03:56]} Nxc3 {[%emt 0:00:28]} 10. bxc3 {[%emt 0:00:05]} O-O {[%emt 0:00:07]} 11. Bf4 {[%emt 0:05:30]} dxe5 $11 {[%emt 0:07:08]} 12. Nxe5 {[%emt 0:05:32]} Nxe5 {[%emt 0:00:29]} 13. dxe5 {[%emt 0:02:29]} Qa5 {[%emt 0:01:30]} 14. Qf3 {[%emt 0:03:06]} Rb8 {[%emt 0:00:27]} 15. Rfd1 {[%emt 0:05:38]} b5 {[%emt 0:02:51]} 16. Bb3 {[%emt 0:00:59]} Rb7 {[%emt 0:01:51]} 17. Rd3 {[%emt 0:05:38]} g6 {[%emt 0:03:36]} 18. Bh6 {[%emt 0:08:58]} Re8 {[%emt 0:00:25]} 19. Qc6 {[%emt 0:01:49]} Rd8 {[%emt 0:09:33]} 20. Rad1 {[%emt 0:02:32]} 1-0

[Event "WYCC 2018 G14"]
[Site "Halkidiki"]
[Date "2018.10.21"]
[Round "3"]
[White "Brunner, Sophia"]
[Black "Mehmed, Elif"]
[Result "0-1"]
[ECO "A48"]
[WhiteElo "1812"]
[BlackElo "2049"]
[Annotator "NA"]
[PlyCount "84"]
[EventDate "2018.10.20"]
[EventType "swiss"]
[EventCountry "GRE"]
[SourceTitle "playchess.com"]
[Source "ChessBase"]
[SourceQuality "1"]
[TimeControl "40/5400+30:1800+30"]

1. d4 {[%emt 0:00:00]} Nf6 {[%emt 0:00:00]} 2. Nf3 {[%emt 0:00:00]} g6 {[%emt 0:01:56]} 3. e3 {[%emt 0:04:48]} Bg7 {[%emt 0:00:56]} 4. Bd3 {[%emt 0:00:23]} O-O {[%emt 0:02:37]} 5. O-O {[%emt 0:02:37]} d5 {[%emt 0:03:02]} 6. b3 {[%emt 0:00:28]} b6 {[%emt 0:03:53]} 7. Bb2 {[%emt 0:05:11]} Bb7 {[%emt 0:00:40]} 8. c4 {[%emt 0:01:28]} e6 {[%emt 0:00:16]} 9. Nbd2 {[%emt 0:02:42]} Nbd7 {[%emt 0:00:43]} 10. Qe2 {[%emt 0:07:55]} c5 {[%emt 0:04:17]} 11. Rac1 {[%emt 0:10:25]} Rc8 {[%emt 0:03:42]} 12. Rfd1 {[%emt 0:02:19]} Re8 {[%emt 0:10:05]} 13. Rc2 {[%emt 0:14:23]} cxd4 {[%emt 0:08:19]} 14. exd4 {[%emt 0:00:24]} Qe7 {[%emt 0:01:04]} 15. Ne5 {[%emt 0:01:38]} Rc7 {[%emt 0:02:58]} 16. Ndf3 {[%emt 0:03:36]} Rec8 {[%emt 0:03:28]} 17. Nxd7 {[%emt 0:04:38]} Nxd7 {[%emt 0:00:24]} 18. Ne5 {[%emt 0:02:45]} dxc4 {[%emt 0:04:24]} 19. Rxc4 {[%emt 0:00:49]} Nf6 {[%emt 0:05:00]} 20. Rxc7 {[%emt 0:03:39]} Rxc7 {[%emt 0:03:52]} 21. Bc4 {[%emt 0:00:15]} Nd5 {[%emt 0:01:29]} 22. Nd3 {[%emt 0:06:25]} Qg5 {[%emt 0:08:53]} 23. g3 {[%emt 0:05:47]} h5 {[%emt 0:10:33]} 24. h4 {[%emt 0:04:21]} Qd8 {[%emt 0:01:33]} 25. Qd2 {[%emt 0:01:17]} Qd6 {[%emt 0:01:53]} 26. Kh2 {[%emt 0:03:38]} Bf6 {[%emt 0:08:45]} 27. Kg1 {[%emt 0:00:28]} a6 {[%emt 0:03:06]} 28. Ne5 {[%emt 0:02:04]} Kg7 {[%emt 0:01:54]} 29. Be2 {[%emt 0:03:25]} Nb4 {[%emt 0:04:12]} 30. Bc3 {[%emt 0:02:25]} Bxe5 {[%emt 0:00:33]} 31. Bxb4 {[%emt 0:02:05]} Qd5 {[%emt 0:00:08]} 32. f3 {[%emt 0:00:53]} Bxg3 {[%emt 0:00:20]} 33. Qe3 {[%emt 0:02:34]} Bxh4 {[%emt 0:00:33]} 34. Bd2 {[%emt 0:00:19]} Bf6 {[%emt 0:00:38]} 35. Bc1 {[%emt 0:00:31]} Kg8 36. Bb2 {[%emt 0:00:23]} Qg5+ {[%emt 0:00:51]} 37. Qxg5 {[%emt 0:00:24]} Bxg5 {[%emt 0:00:01]} 38. Kf2 {[%emt 0:00:45]} Rc2 {[%emt 0:00:19]} 39. Rb1 {[%emt 0:00:27]} a5 {[%emt 0:00:42]} 40. Kf1 {[%emt 0:00:00]} Bd5 {[%emt 0:00:00]} 41. Ke1 {[%emt 0:02:13]} h4 {[%emt 0:02:12]} 42. Bd3 {[%emt 0:01:37]} Rh2 {[%emt 0:01:29]} 0-1

[Event "WYCC 2018 G14"]
[Site "Halkidiki"]
[Date "2018.10.21"]
[Round "3"]
[White "Kouta, Antonia"]
[Black "Arauco Celestino, Arianna Sofia"]
[Result "0-1"]
[ECO "B32"]
[WhiteElo "1812"]
[BlackElo "1610"]
[Annotator "NA"]
[PlyCount "104"]
[EventDate "2018.10.20"]
[EventType "swiss"]
[EventCountry "GRE"]
[SourceTitle "playchess.com"]
[Source "ChessBase"]
[SourceQuality "1"]
[TimeControl "40/5400+30:1800+30"]

1. e4 {[%emt 0:00:00]} c5 {[%emt 0:00:00]} 2. Nf3 {[%emt 0:00:00]} Nc6 {[%emt 0:00:00]} 3. d4 {[%emt 0:00:00]} cxd4 {[%emt 0:00:00]} 4. Nxd4 {[%emt 0:00:00]} Qb6 {[%emt 0:00:00]} 5. Nb3 {[%emt 0:04:21]} Nf6 {[%emt 0:02:15]} 6. Nc3 {[%emt 0:04:07]} e6 {[%emt 0:00:08]} 7. a3 {[%emt 0:02:35]} Be7 {[%emt 0:10:36]} 8. Be3 {[%emt 0:03:29]} Qd8 {[%emt 0:06:21]} 9. f4 {[%emt 0:09:13]} d6 {[%emt 0:03:46]} 10. Be2 {[%emt 0:05:59]} O-O {[%emt 0:05:17]} 11. O-O {[%emt 0:01:48]} a6 {[%emt 0:09:13]} 12. Qe1 {[%emt 0:11:18]} b5 {[%emt 0:07:02]} 13. Bf3 {[%emt 0:10:51]} Bb7 {[%emt 0:05:35]} 14. Qf2 {[%emt 0:03:44]} Nd7 {[%emt 0:06:24]} 15. Rad1 {[%emt 0:03:08]} Na5 {[%emt 0:05:43]} 16. Nd4 {[%emt 0:09:16]} Nc4 {[%emt 0:02:18]} 17. Bc1 {[%emt 0:00:21]} Rc8 {[%emt 0:01:33]} 18. Kh1 {[%emt 0:01:17]} Nxa3 {[%emt 0:03:24]} 19. bxa3 {[%emt 0:03:53]} Rxc3 {[%emt 0:00:08]} 20. Bb2 {[%emt 0:00:14]} Rc4 {[%emt 0:04:42]} 21. Rfe1 {[%emt 0:03:44]} Bh4 {[%emt 0:04:22]} 22. g3 {[%emt 0:00:20]} Bf6 {[%emt 0:00:10]} 23. c3 {[%emt 0:06:19]} Qa8 {[%emt 0:01:56]} 24. Qg2 {[%emt 0:02:30]} Nc5 {[%emt 0:07:53]} 25. e5 {[%emt 0:03:02]} Rxd4 {[%emt 0:00:23]} 26. Bxb7 {[%emt 0:00:17]} Rxd1 {[%emt 0:00:04]} 27. Rxd1 {[%emt 0:00:53]} Qxb7 {[%emt 0:00:18]} 28. exf6 {[%emt 0:00:18]} Qxg2+ {[%emt 0:02:01]} 29. Kxg2 {[%emt 0:00:05]} Na4 {[%emt 0:02:04]} 30. fxg7 {[%emt 0:02:32]} Rc8 {[%emt 0:02:16]} 31. Ba1 {[%emt 0:00:27]} d5 {[%emt 0:02:03]} 32. Rd3 {[%emt 0:01:57]} Rc4 {[%emt 0:01:04]} 33. Kf3 {[%emt 0:04:14]} Kxg7 {[%emt 0:00:47]} 34. g4 {[%emt 0:01:16]} Kg6 {[%emt 0:01:01]} 35. h4 {[%emt 0:01:36]} h5 {[%emt 0:02:41]} 36. f5+ {[%emt 0:01:07]} Kf6 {[%emt 0:02:37]} 37. gxh5 {[%emt 0:00:24]} Rxh4 {[%emt 0:00:45]} 38. c4+ {[%emt 0:00:56]} Kxf5 {[%emt 0:00:29]} 39. cxd5 {[%emt 0:00:00]} Rh3+ {[%emt 0:00:31]} 40. Ke2 {[%emt 0:00:00]} Rxd3 {[%emt 0:00:00]} 41. Kxd3 {[%emt 0:00:53]} exd5 {[%emt 0:02:37]} 42. Kd4 {[%emt 0:12:04]} Nb6 {[%emt 0:16:14]} 43. Kc5 {[%emt 0:02:18]} Nc4 {[%emt 0:00:04]} 44. a4 {[%emt 0:02:55]} bxa4 {[%emt 0:04:46]} 45. Kxd5 {[%emt 0:00:22]} Na3 {[%emt 0:00:18]} 46. Bc3 {[%emt 0:04:59]} Nb5 {[%emt 0:06:26]} 47. Ba1 {[%emt 0:05:18]} a3 {[%emt 0:00:33]} 48. Kc5 {[%emt 0:01:10]} Kg5 {[%emt 0:00:33]} 49. Kb6 {[%emt 0:00:56]} a2 {[%emt 0:00:11]} 50. Bb2 {[%emt 0:03:21]} Na3 {[%emt 0:00:21]} 51. Kxa6 {[%emt 0:00:35]} Nc2 {[%emt 0:00:07]} 52. h6 {[%emt 0:00:21]} Kxh6 {[%emt 0:00:06]} 0-1